[Event "8th Svetozar Gligoric Cup 2022"]
[Site "Paracin"]
[Date "2022.06.01"]
[Round "2.5"]
[White "Bogosavljevic, Boban"]
[Black "Jovanovic, Dusan D"]
[Result "1/2-1/2"]
[ECO "A30"]
[WhiteElo "2527"]
[BlackElo "2391"]
[Annotator "TA"]
[PlyCount "173"]
[EventDate "2022.05.31"]
[EventType "team-tourn"]
[EventCountry "SRB"]
[SourceTitle "playchess.com"]
[Source "ChessBase"]
[SourceQuality "1"]
[TimeControl "40/5400+30:900+30"]

{[%evp 17,173,41,49,35,43,25,43,-41,25,16,8,18,22,26,22,19,39,36,39,26,44,22,19,15,89,74,104,66,60,0,0,0,0,0,0,0,0,0,25,0,0,0,0,0,0,0,0,5,10,2,4,2,6,4,8,15,167,16,26,10,12,9,9,2,2,2,4,5,12,5,5,7,9,0,3,0,0,0,0,0,0,0,0,0,0,0,0,0,0,0,0,0,0,0,0,0,0,0,0,0,0,0,0,0,0,0,0,0,0,0,0,0,0,0,0,0,0,0,0,0,0,0,0,0,0,0,0,0,0,0,0,0,0,0,0,0,0,0,0,0,0,0,0,0,0,0,0,0,0,0,0,0,0,0,0,0,0,0]} 1. Nf3 {[%emt 0:04:19]} Nf6 {[%emt 0:00:09]} 2. g3 {[%emt 0:00:08]} b6 {[%emt 0:00:06]} 3. Bg2 {[%emt 0:00:10]} Bb7 {[%emt 0:00:07]} 4. O-O {[%emt 0:00:09]} e6 {[%emt 0:00:22]} 5. c4 {[%emt 0:00:32]} c5 {[%emt 0:00:10]} 6. Nc3 {[%emt 0:00:14]} d6 {[%emt 0:02:16]} 7. d4 {[%emt 0:01:57]} cxd4 {[%emt 0:00:08]} 8. Nxd4 {[%emt 0:00:11]} Bxg2 {[%emt 0:02:26]} 9. Kxg2 {[%emt 0:00:07]} Be7 {[%emt 0:02:20]} 10. e4 {[%emt 0:01:57] A30: Symmetrical English: Double Fianchetto and Hedgehog.} O-O {[%emt 0:00:30]} 11. f4 {[%emt 0:00:57] [#]} Qc8 $146 {[%emt 0:05:24]} ({Predecessor:} 11... a6 12. Qf3 Ra7 13. Be3 Rc7 14. b3 Rc8 15. Rac1 Nbd7 16. Rfd1 Qc7 17. g4 Qb7 {1-0 (40) Sihite,C (2252)-Nandhidhaa,P (2365) Chess.com INT 2020}) 12. Qf3 {[%emt 0:10:52]} ({White should play} 12. b3 $14) 12... Nc6 {[%emt 0:00:55]} (12... Qxc4 $15 13. Rd1 Nc6) 13. Nxc6 {[%emt 0:12:37]} Qxc6 {[%emt 0:00:54]} 14. b3 $1 {[%emt 0:00:21]} Nd7 {[%emt 0:07:57]} 15. Ba3 {[%emt 0:04:32]} Rfe8 {[%emt 0:06:35]} 16. Rad1 {[%emt 0:05:15]} Nc5 {[%emt 0:14:27]} 17. Bxc5 {[%emt 0:12:08]} Qxc5 {[%emt 0:08:39]} 18. e5 {[%emt 0:03:52] [#] Strongly threatening exd6.} dxe5 {[%emt 0:03:14]} 19. Ne4 {[%emt 0:02:10]} (19. fxe5 {seems wilder.} Qxe5 20. Qxf7+ Kh8 21. Nb5) 19... Qc7 {[%emt 0:03:14]} 20. fxe5 {[%emt 0:01:45]} Qxe5 {[%emt 0:01:22]} (20... Rf8 $1 $11 {remains equal.}) 21. Qxf7+ $16 {[%emt 0:01:43]} Kh8 {[%emt 0:00:05]} 22. Rde1 {[%emt 0:03:23][%cal Oe4f6]} Bb4 {[%emt 0:02:58] [#]} 23. Re2 {[%emt 0:04:41]} (23. Nf6 $1 $14 Qb2+ 24. Rf2) 23... Rf8 $36 {[%emt 0:01:31][%mdl 2048] Black is pushing.} 24. Qb7 {[%emt 0:00:26]} Rxf1 {[%emt 0:12:00]} (24... Qh5 25. Rxf8+ Rxf8 26. Rf2 $16) 25. Kxf1 {[%emt 0:05:14]} Rb8 {[%emt 0:04:06]} 26. Qc6 {[%emt 0:01:19] Active counter play!} (26. Qxa7 $2 Rf8+ 27. Rf2 Qxe4 $19) 26... h6 {[%emt 0:04:09]} 27. Kg2 {[%emt 0:02:16]} Bc5 {[%emt 0:01:41]} 28. Qd7 {[%emt 0:08:17]} (28. g4 $5 {[%cal Re4g3]}) 28... Rf8 {[%emt 0:01:00]} 29. Qd1 {[%emt 0:00:42]} Qf5 {[%emt 0:02:36]} 30. Nxc5 {[%emt 0:05:39]} Qf3+ {[%emt 0:02:22]} 31. Kg1 {[%emt 0:00:10]} bxc5 {[%emt 0:00:06][%mdl 4096] Endgame KQR-KQR} 32. Qe1 {[%emt 0:00:24]} Rd8 $1 {[%emt 0:02:07]} 33. Re3 {[%emt 0:01:43]} (33. Rxe6 $2 Rd1 34. Qxd1 (34. Re8+ $2 Kh7 $19) 34... Qxd1+ $19) 33... Qg4 {[%emt 0:00:23]} 34. Kg2 {[%emt 0:00:48]} (34. Rxe6 $2 Rd1 35. Kg2 (35. Re8+ $2 Kh7 $19) 35... Rxe1 $19) 34... Rd6 {[%emt 0:01:33]} (34... Rd1 {is interesting.} 35. Qf2 Kg8 36. Qb2 a5) 35. Qf2 {[%emt 0:03:04] Hoping for Qf8+.} Qd1 {[%emt 0:01:28] aiming for ...Rd2.} 36. Re1 {[%emt 0:00:20]} Qd3 $2 {[%emt 0:01:02]} (36... Qd2 $11 {and Black is okay.}) 37. Kh3 $2 {[%emt 0:01:31]} ({Only move:} 37. Qxc5 $18 Qc2+ 38. Kg1) 37... Ra6 {[%emt 0:02:36]} 38. Re5 {[%emt 0:01:27]} Qb1 {[%emt 0:00:38] The position is equal.} 39. Re2 {[%emt 0:00:25]} Kh7 {[%emt 0:00:44]} 40. Rb2 {[%emt 0:00:00]} Qf5+ {[%emt 0:00:00]} 41. Kg2 {[%emt 0:02:17]} Qe4+ {[%emt 0:04:23]} 42. Qf3 {[%emt 0:00:29]} Qd4 {[%emt 0:00:48]} 43. Re2 {[%emt 0:00:57]} Rd6 {[%emt 0:00:31]} 44. h4 {[%emt 0:00:27]} a5 {[%emt 0:02:28]} 45. h5 {[%emt 0:07:27]} a4 {[%emt 0:04:08]} (45... Qd1 {with more complications.} 46. Qe4+ Kh8 47. Qe3 a4) 46. Rf2 {[%emt 0:00:16]} axb3 {[%emt 0:01:10]} 47. axb3 {[%emt 0:00:13]} Qe5 {[%emt 0:03:15]} 48. Re2 {[%emt 0:01:39]} Qg5 {[%emt 0:00:36]} 49. Qe4+ {[%emt 0:00:52]} Kg8 {[%emt 0:00:50]} 50. Qg6 {[%emt 0:02:18]} Qe7 {[%emt 0:01:35]} 51. Kh2 {[%emt 0:03:44]} Qd7 {[%emt 0:00:23]} 52. Kh3 {[%emt 0:01:27]} Qb7 {[%emt 0:00:49]} 53. Qe8+ {[%emt 0:00:47]} Kh7 {[%emt 0:00:08]} 54. Qg6+ {[%emt 0:00:02]} (54. Rxe6 {gets mated.} Qh1+ 55. Kg4 Rd4+) 54... Kg8 {[%emt 0:00:42]} 55. Re4 {[%emt 0:01:07]} Qc6 {[%emt 0:00:56]} 56. Qg4 {[%emt 0:00:31]} Qd7 {[%emt 0:01:49]} 57. Re3 {[%emt 0:00:42]} Qc6 {[%emt 0:01:30][%cal Rc6h1]} 58. Qf3 {[%emt 0:00:06] Against Qh1+} Qd7 {[%emt 0:00:05]} 59. Qa8+ {[%emt 0:00:13]} Kh7 {[%emt 0:00:06]} 60. Qe4+ {[%emt 0:00:02]} Kg8 {[%emt 0:00:27]} 61. Qa8+ {[%emt 0:00:32]} Kh7 {[%emt 0:00:06]} 62. Re5 {[%emt 0:01:03]} Rd4 {[%emt 0:01:16] Prevents Qe4+.} 63. Qf3 {[%emt 0:00:42]} ({Don't go for} 63. Rxc5 $2 e5+ 64. Kh2 Rd2+ 65. Qg2 Rxg2+ $19) 63... Qd6 {[%emt 0:00:57]} 64. Re3 {[%emt 0:00:41]} Qd7 {[%emt 0:00:25]} 65. Re5 {[%emt 0:00:44]} Qd6 {[%emt 0:00:07]} 66. Re3 {[%emt 0:00:43]} Qd7 {[%emt 0:00:05]} 67. Re2 {[%emt 0:00:22]} Qd6 {[%emt 0:02:22]} 68. Qf7 {[%emt 0:00:24]} Rd3 {[%emt 0:00:35][%csl Gd3][%cal Rd6g3]} 69. Qg6+ {[%emt 0:00:10]} Kh8 {[%emt 0:00:05]} 70. Qe8+ {[%emt 0:01:05]} Kh7 {[%emt 0:00:06][%csl Gd3][%cal Rd6g3]} 71. Qg6+ {[%emt 0:00:03]} Kh8 {[%emt 0:00:07]} 72. Rf2 {[%emt 0:01:05] White threatens Rf7 and mate.} Kg8 $1 {[%emt 0:02:28]} 73. Qe8+ {[%emt 0:00:09]} Kh7 {[%emt 0:00:08][%csl Gd3][%cal Rd6g3]} 74. Qg6+ {[%emt 0:00:02]} Kg8 $1 {[%emt 0:00:02]} 75. b4 {[%emt 0:00:42]} cxb4 {[%emt 0:01:49]} 76. Qe8+ {[%emt 0:00:03]} Kh7 {[%emt 0:00:02][%csl Gd3][%cal Rd6g3]} 77. Qg6+ {[%emt 0:00:04]} Kg8 $1 {[%emt 0:00:09]} (77... Kh8 78. Rf7) 78. Qe8+ {[%emt 0:01:58]} Kh7 {[%emt 0:00:05][%csl Gd3][%cal Rd6g3]} 79. Qg6+ {[%emt 0:00:02]} Kg8 $1 {[%emt 0:00:03]} (79... Kh8 {is a self mate.} 80. Rf7) 80. c5 {[%emt 0:01:02]} Qd5 {[%emt 0:00:08]} (80... Qxc5 $2 81. Qxe6+ Kh8 82. Qe8+ Kh7 83. Rf8 Rxg3+ 84. Kxg3 $18) 81. Qe8+ {[%emt 0:00:10]} Kh7 {[%emt 0:00:04] White must now prevent ...Qh1+.} 82. Qg6+ {[%emt 0:00:02]} Kg8 {[%emt 0:00:02]} 83. Qe8+ {[%emt 0:01:19]} Kh7 {[%emt 0:00:02] ...Qh1+ is the strong threat.} 84. Qg6+ {[%emt 0:00:04]} Kg8 {[%emt 0:00:09]} 85. Rf1 {[%emt 0:00:56] Against Qh1+} Rd2 {[%emt 0:00:30]} 86. Qe8+ {[%emt 0:00:16]} Kh7 {[%emt 0:00:05] ( -> ...Qg2+)} 87. Qg6+ {[%emt 0:00:37] Weighted Error Value: White=0.14 (very precise) /Black=0.12 (very precise)} 1/2-1/2

[Event "8th Svetozar Gligoric Cup 2022"]
[Site "Paracin"]
[Date "2022.06.01"]
[Round "2.6"]
[White "Dudukovic, Nikola"]
[Black "Stankovic, Milos"]
[Result "1/2-1/2"]
[ECO "B19"]
[WhiteElo "2346"]
[BlackElo "2430"]
[Annotator "TA"]
[PlyCount "44"]
[EventDate "2022.05.31"]
[EventType "team-tourn"]
[EventCountry "SRB"]
[SourceTitle "playchess.com"]
[Source "ChessBase"]
[SourceQuality "1"]
[TimeControl "40/5400+30:900+30"]

{[%evp 19,20,-1,0]} 1. e4 {[%emt 0:00:04]} c6 {[%emt 0:01:12]} 2. d4 {[%emt 0:00:07]} d5 {[%emt 0:00:31]} 3. Nd2 {[%emt 0:00:29][%cal Bb1d2,Bd2e4,Be4g3][%mdl 32]} dxe4 {[%emt 0:01:27]} 4. Nxe4 {[%emt 0:00:08]} Bf5 {[%emt 0:00:44]} 5. Ng3 {[%emt 0:00:08]} Bg6 {[%emt 0:00:51]} 6. Nf3 {[%emt 0:00:12]} Nd7 {[%emt 0:01:00]} 7. h4 {[%emt 0:00:11]} h6 {[%emt 0:00:44]} 8. h5 {[%emt 0:00:07]} Bh7 {[%emt 0:00:24]} 9. Bd3 {[%emt 0:00:08]} Bxd3 {[%emt 0:01:18]} 10. Qxd3 {[%emt 0:00:07]} Ngf6 {[%emt 0:00:28] [#]} {Predecessor:} 11. Bd2 $146 {B19: Classical Caro-Kann: 4...Bf5 main line.} e6 12. O-O-O Be7 13. Kb1 O-O 14. Nf1 Qb6 15. Ne3 Qa6 16. Qxa6 bxa6 17. Nc4 Rfc8 18. Nfe5 c5 19. Nxd7 Nxd7 20. dxc5 Bxc5 21. Bxh6 Bxf2 22. Rxd7 Rxc4 {½-½ (52) Firouzja,A (2682)-Martinez Alcantara,J (2583) Chess.com INT 2019} 1/2-1/2

[Event "8th Svetozar Gligoric Cup 2022"]
[Site "Paracin"]
[Date "2022.06.01"]
[Round "2.7"]
[White "Zajic, Milan"]
[Black "Ciric, Pavle"]
[Result "1/2-1/2"]
[ECO "C11"]
[WhiteElo "2426"]
[BlackElo "2177"]
[Annotator "TA"]
[PlyCount "59"]
[EventDate "2022.05.31"]
[EventType "team-tourn"]
[EventCountry "SRB"]
[SourceTitle "playchess.com"]
[Source "ChessBase"]
[SourceQuality "1"]
[TimeControl "40/5400+30:900+30"]

{[%evp 16,59,10,8,10,28,51,47,54,11,42,34,51,39,51,35,39,42,43,38,41,42,47,50,44,44,40,30,41,42,72,55,70,0,0,0,0,0,12,0,9,0,0,-8,-8,-8]} 1. e4 {[%emt 0:00:02]} e6 {[%emt 0:00:06]} 2. d4 {[%emt 0:00:09]} d5 {[%emt 0:00:05]} 3. Nc3 {[%emt 0:00:06]} Nf6 {[%emt 0:00:14]} 4. e5 {[%emt 0:00:08]} Nfd7 {[%emt 0:00:05]} 5. f4 {[%emt 0:00:09]} c5 {[%emt 0:00:05]} 6. Nf3 {[%emt 0:00:07]} Nc6 {[%emt 0:00:07]} 7. Be3 {[%emt 0:00:12]} Be7 {[%emt 0:00:19]} 8. Qd2 {[%emt 0:00:11]} O-O {[%emt 0:00:31]} 9. dxc5 {[%emt 0:00:23]} Qa5 {[%emt 0:00:31] Prevents Na4. C11: French: Classical System: 4 e5 and 4 Bg5 dxe4.} 10. O-O-O {[%emt 0:01:01]} b6 {[%emt 0:01:27][%cal Bb7b6,Bb6c5,Bc5b4][%mdl 32]} 11. Bb5 {[%emt 0:00:30]} Nb4 {[%emt 0:02:05] White is slightly better.} 12. a3 {[%emt 0:01:24]} bxc5 {[%emt 0:05:13][%cal Ob4a2]} (12... Na2+ $5 13. Nxa2 Qxb5 $16) 13. Kb1 $1 {[%emt 0:01:45] Against Na2 13.Kb1 is better than 13.Bxd7.} ({Inferior is} 13. axb4 cxb4 14. Na4 (14. Bxd7 $2 bxc3 15. Qxc3 Bb4 $19) 14... Qxb5 $17) 13... Rb8 {[%emt 0:01:44][%cal Ob4c6]} 14. axb4 {[%emt 0:00:22]} cxb4 {[%emt 0:01:12] [#]} 15. Nxd5 {[%emt 0:00:25]} exd5 {[%emt 0:00:05]} 16. Bxd7 {[%emt 0:00:11]} Bxd7 {[%emt 0:00:03][%cal Bc8d7,Bd7c6,Bc6e4][%mdl 32]} 17. Qxd5 {[%emt 0:00:15]} Qxd5 {[%emt 0:00:24]} 18. Rxd5 {[%emt 0:00:09]} Bc6 {[%emt 0:00:04]} 19. Ra5 {[%emt 0:00:31]} Rfc8 {[%emt 0:00:11]} 20. Rc1 {[%emt 0:18:29]} Be4 {[%emt 0:15:53] [#] And now ...b3 would win.} 21. b3 {[%emt 0:06:26]} Rc3 {[%emt 0:24:20][%csl LRb3,LRe3]} 22. Bxa7 {[%emt 0:00:34]} Rbc8 {[%emt 0:08:38] aiming for ...Rxb3+.} 23. Nd4 {[%emt 0:01:05]} Bxg2 {[%emt 0:03:47] [#]} 24. Rd1 $146 {[%emt 0:40:48]} (24. Nf5 $1 $14 Bf8 25. Nd6) ({Predecessor:} 24. Re1 g6 25. Re2 Bh3 26. Nb5 Rf3 27. Rf2 Rxf2 28. Bxf2 Bf5 29. Nd6 Bxc2+ 30. Kb2 {1-0 (39) Volokitin,A (2633)-Stankovic,M (2468) Hungary 2019}) 24... Be4 $11 {[%emt 0:15:03][%cal Rc3c2] Threatens to win with ...Rxc2. The position is equal.} 25. Rd2 {[%emt 0:00:25]} f5 {[%emt 0:01:25]} 26. Bb6 {[%emt 0:11:40]} h6 {[%emt 0:06:35]} 27. Ra7 {[%emt 0:03:05]} Bh4 {[%emt 0:03:06]} 28. Kb2 {[%emt 0:06:54]} g5 {[%emt 0:04:26]} 29. fxg5 {[%emt 0:04:49] The board is on fire.} Bxg5 {[%emt 0:00:04] A strong pair of Bishops.} 30. Re2 $1 {[%emt 0:01:45] Weighted Error Value: White=0.06 (flawless) /Black=0.07 (flawless)} 1/2-1/2

[Event "8th Svetozar Gligoric Cup 2022"]
[Site "Paracin"]
[Date "2022.06.01"]
[Round "2.8"]
[White "Maksimovic, Boban"]
[Black "Toth, Aleksandar"]
[Result "1/2-1/2"]
[WhiteElo "2221"]
[BlackElo "2335"]
[Annotator "TA"]
[PlyCount "18"]
[EventDate "2022.05.31"]
[EventType "team-tourn"]
[EventCountry "SRB"]
[SourceTitle "playchess.com"]
[Source "ChessBase"]
[SourceQuality "1"]
[TimeControl "40/5400+30:900+30"]

{[%evp 9,18,14,13,0,0,0,7,-6,0,-38,-25]} 1. d4 {[%emt 0:02:15]} d5 {[%emt 0:02:12]} 2. Nf3 {[%emt 0:00:29]} Nf6 {[%emt 0:01:48]} 3. Bg5 {[%emt 0:00:57]} Bf5 {[%emt 0:10:10]} 4. Nbd2 {[%emt 0:06:46]} c6 {[%emt 0:04:35]} 5. e3 {[%emt 0:14:58]} Nbd7 {[%emt 0:01:35]} 6. Bd3 {[%emt 0:00:29] D03: 1 d4 d5 2 Nf3 Nf6 3 Bg5, including Torre Attack with early ...d5.} Bxd3 {[%emt 0:15:44]} 7. cxd3 {[%emt 0:02:29]} h6 {[%emt 0:04:27]} 8. Bf4 {[%emt 0:00:47]} e6 {[%emt 0:02:14] [#]} 9. Rf1 $146 {[%emt 1:05:50]} ({Predecessor:} 9. O-O Nh5 10. Be5 Be7 11. h3 O-O 12. Rc1 Nhf6 13. Bg3 Qb6 14. Qc2 Rfe8 15. Nb3 {1-0 (53) De Carlos Arregui,I (2337)-Silva Filho,A (2348) ICCF email 2014}) 9... Qb6 {[%emt 0:52:15] White got outplayed after the opening.  Weighted Error Value: White=0.21 (precise) /Black=0.02 (flawless)} 1/2-1/2

[Event "8th Svetozar Gligoric Cup 2022"]
[Site "Paracin"]
[Date "2022.06.01"]
[Round "2.9"]
[White "Dezelin, Milan"]
[Black "Atalik, Suat"]
[Result "0-1"]
[ECO "A30"]
[WhiteElo "1899"]
[BlackElo "2459"]
[Annotator "TA"]
[PlyCount "74"]
[EventDate "2022.05.31"]
[EventType "team-tourn"]
[EventCountry "SRB"]
[SourceTitle "playchess.com"]
[Source "ChessBase"]
[SourceQuality "1"]
[TimeControl "40/5400+30:900+30"]

{[%evp 12,74,-6,-26,-16,-23,-21,-75,-66,-74,-76,-70,-25,-28,-21,-69,-51,-93,-89,-97,-94,-93,-75,-80,-51,-58,-13,-16,2,-50,-60,-58,0,-64,-59,-83,0,-1,0,-12,-16,-7,-13,0,0,0,0,-5,-2,0,0,0,0,-16,-19,-35,-10,-37,-36,-125,-85,-708,-758,-1605,-1537]} 1. Nf3 {[%emt 0:01:02]} Nf6 {[%emt 0:00:28]} 2. e3 {[%emt 0:00:59]} g6 {[%emt 0:02:50]} 3. b3 {[%emt 0:02:47]} Bg7 {[%emt 0:00:18]} 4. Bb2 {[%emt 0:00:08]} O-O {[%emt 0:02:27]} 5. Be2 {[%emt 0:09:21]} d5 {[%emt 0:05:18]} 6. O-O {[%emt 0:04:39]} c5 {[%emt 0:00:20][%cal Bc7c5,Bc5d4][%mdl 32]} 7. c4 {[%emt 0:06:24]} d4 {[%emt 0:02:00] A30: Symmetrical English: Double Fianchetto and Hedgehog.} 8. exd4 {[%emt 0:00:17]} (8. Ne5 {feels hotter.} Ne4 9. f4 Nd7 10. Bf3) 8... Ne8 {[%emt 0:00:20][%cal Rc5d4]} 9. Qc2 {[%emt 0:04:31]} (9. d3 $11) 9... cxd4 $17 {[%emt 0:00:26][%cal Od4d3] [#] Black is better.} 10. d3 $146 {[%emt 0:00:08]} ({Predecessor:} 10. b4 d3 11. Bxd3 Bxb2 12. Qxb2 Qxd3 {0-1 (12) Szocs,T (2013)-Talu,M (2386) Mamaia 2021}) 10... Nc6 {[%emt 0:02:50]} 11. Nbd2 {[%emt 0:01:27]} Bf5 {[%emt 0:04:52]} 12. a3 {[%emt 0:05:54]} a5 {[%emt 0:09:37]} 13. Rab1 {[%emt 0:11:34]} (13. Ng5 $11) 13... Nc7 {[%emt 0:03:19]} 14. Nh4 {[%emt 0:02:43]} Bd7 {[%emt 0:00:52]} 15. g3 {[%emt 0:10:20]} e5 {[%emt 0:09:14]} 16. Bc1 {[%emt 0:01:50]} Ne6 {[%emt 0:09:13] Black is more active.} 17. Bf3 {[%emt 0:18:47]} Bf6 {[%emt 0:10:52]} 18. Ng2 $1 {[%emt 0:02:28]} Be7 {[%emt 0:01:46]} 19. Bd5 {[%emt 0:01:04]} Kg7 {[%emt 0:11:30]} 20. Nf3 {[%emt 0:04:28]} (20. f4 $11) 20... f6 $15 {[%emt 0:01:32]} 21. Qd2 {[%emt 0:01:59]} g5 {[%emt 0:00:13]} (21... Nc7 $15 22. Qh6+ Kh8) 22. b4 {[%emt 0:00:46]} (22. h4 $11) 22... axb4 {[%emt 0:01:31]} 23. axb4 {[%emt 0:00:03] [#]} Nc7 {[%emt 0:02:10]} (23... Ra4 $1 $17 {[%cal Rc6b4]} 24. b5 Nb4 25. Bxb7 Qb6) 24. Be4 $11 {[%emt 0:01:50]} b5 {[%emt 0:00:39]} 25. h4 {[%emt 0:01:26][%cal Rh4g5]} h6 {[%emt 0:03:12]} 26. hxg5 {[%emt 0:00:20]} hxg5 {[%emt 0:00:06] White must now prevent ...Rh8.} 27. Ngh4 $1 {[%emt 0:01:14]} Nxb4 {[%emt 0:04:40]} 28. Ng6 {[%emt 0:04:32]} Ra2 {[%emt 0:04:23]} 29. Rb2 {[%emt 0:00:35]} Rxb2 {[%emt 0:01:27] The board is on fire.} 30. Bxb2 {[%emt 0:00:02]} bxc4 {[%emt 0:02:25]} 31. dxc4 {[%emt 0:00:36]} ({Much worse is} 31. Nxf8 c3 32. Qe2 (32. Bxc3 $2 dxc3 33. Qxc3 Bxf8 $17) 32... Qxf8 $17) 31... Bc6 {[%emt 0:00:10]} 32. Bxc6 {[%emt 0:00:41]} Kxg6 {[%emt 0:00:30]} ({Don't take} 32... Nxc6 33. Nxf8 Qxf8 34. Qd3 $14) 33. Be4+ {[%emt 0:00:18] A strong pair of Bishops.} Kg7 {[%emt 0:00:05]} 34. Kg2 {[%emt 0:01:17]} (34. Ba3 $5 {[%cal Ra3b4]} Nba6 35. Qa5 $17) 34... Rh8 {[%emt 0:00:47] [#] Threatens to win with ...Qd7.} 35. Ra1 {[%emt 0:00:52]} ({Better is} 35. Qe1 $15) 35... Qc8 {[%emt 0:01:09] ( -> ...Qh3+)} 36. Kf1 $2 {[%emt 0:00:24][%mdl 8192]} (36. Kg1 $17) 36... Qh3+ $19 {[%emt 0:01:46]} 37. Ke2 {[%emt 0:01:14]} Qg4 {[%emt 0:03:43] Weighted Error Value: White=0.43/Black=0.13 (very precise)} 0-1

[Event "8th Svetozar Gligoric Cup 2022"]
[Site "Paracin"]
[Date "2022.06.01"]
[Round "2.10"]
[White "Markovic, Miroslav"]
[Black "Rajic, Momcilo"]
[Result "1-0"]
[ECO "A07"]
[WhiteElo "2271"]
[BlackElo "1931"]
[Annotator "TA"]
[PlyCount "119"]
[EventDate "2022.05.31"]
[EventType "team-tourn"]
[EventCountry "SRB"]
[SourceTitle "playchess.com"]
[Source "ChessBase"]
[SourceQuality "1"]
[TimeControl "40/5400+30:900+30"]

{[%evp 9,119,9,29,12,36,36,20,19,8,0,33,9,82,73,119,71,84,77,100,99,107,87,190,93,108,106,116,104,118,108,128,147,125,103,120,106,107,93,107,71,84,82,82,79,79,65,72,70,118,82,127,56,83,75,130,118,140,142,151,98,107,99,99,101,139,155,302,306,270,246,219,198,462,429,485,485,477,477,29966,29968,29971,29972,29972,29973,29973,29974,29974,29974,29976,29973,29973,29974,29975,29967,29982,29983,29983,29984,29984,29979,29980,29981,29981,29981,29981,29982,29982,29983,29983,29984,29983,29984]} 1. Nf3 {[%emt 0:03:16]} Nc6 {[%emt 0:00:17]} 2. g3 {[%emt 0:00:34]} e5 {[%emt 0:00:17]} 3. d3 {[%emt 0:00:11]} Bc5 {[%emt 0:00:51]} 4. Bg2 {[%emt 0:00:08]} d5 {[%emt 0:00:20]} 5. O-O {[%emt 0:00:08]} Be6 {[%emt 0:00:21]} 6. c3 {[%emt 0:00:09] [#] A07: Réti Opening: New York and Capablanca Systems.} Qd7 $146 {[%emt 0:00:58]} ({Predecessor:} 6... h6 7. Nbd2 Nf6 8. b4 Bd6 9. b5 Ne7 10. Nb3 Qd7 11. a4 a6 12. bxa6 Rxa6 {1-0 (60) Suess,H (1961)-Hoffmann,S (1713) Fuerth 2014}) 7. d4 {[%emt 0:01:13]} exd4 {[%emt 0:03:32]} 8. cxd4 {[%emt 0:00:08] The position is equal.} Bb6 {[%emt 0:01:12]} 9. Nc3 {[%emt 0:00:10][%cal Ob2b4,Bb1c3,Bc3a4,Ba4c5][%mdl 32]} a6 {[%emt 0:01:02]} 10. Bf4 {[%emt 0:01:09]} Nf6 {[%emt 0:00:47]} (10... Nge7 $11 {keeps the balance.}) 11. Ne5 $16 {[%emt 0:01:08]} Qe7 {[%emt 0:01:54]} (11... Nxe5 $142 12. dxe5 Nh5) 12. Nxc6 {[%emt 0:02:03]} ({White should try} 12. e3) 12... bxc6 {[%emt 0:00:13]} 13. Na4 {[%emt 0:02:19]} Nh5 {[%emt 0:10:53]} 14. Bd2 {[%emt 0:00:45]} Nf6 {[%emt 0:02:51]} 15. Rc1 {[%emt 0:01:36]} Bxd4 {[%emt 0:05:26] [#]} (15... Bd7 $16 {was necessary.}) 16. Rxc6 {[%emt 0:00:10]} (16. Bh6 $1 $18 {[%cal Rh6g7][%mdl 512] is more deadly.}) 16... Be5 {[%emt 0:00:59]} 17. Nc5 {[%emt 0:02:53]} O-O {[%emt 0:01:41][%cal Bh8f8,Bf8b8,Bb8b6][%mdl 32]} 18. Qc2 {[%emt 0:05:31]} Rfb8 {[%emt 0:06:03]} 19. b3 {[%emt 0:00:22] White is more active.} Rb6 {[%emt 0:00:14]} 20. Nxe6 {[%emt 0:00:46]} fxe6 {[%emt 0:00:16]} 21. e4 {[%emt 0:01:32]} dxe4 {[%emt 0:10:56]} 22. Bxe4 {[%emt 0:01:56]} Rd8 {[%emt 0:05:25]} 23. Be3 {[%emt 0:01:03] This bishop pair is nice.} Rxc6 {[%emt 0:01:01]} 24. Qxc6 {[%emt 0:01:18]} Qd6 {[%emt 0:45:01]} 25. Rc1 {[%emt 1:12:32]} Qxc6 {[%emt 0:00:00]} 26. Bxc6 {[%emt 0:00:00]} Nd5 {[%emt 0:00:00]} 27. Bc5 {[%emt 0:00:00]} Nc3 {[%emt 0:00:00] ...Ne2+ is the strong threat.} 28. Rc2 {[%emt 0:00:00] Against Ne2+} Rd1+ {[%emt 0:00:00]} 29. Kg2 {[%emt 0:00:00]} Kf7 {[%emt 0:00:00]} 30. h4 {[%emt 0:00:00]} ({White should play} 30. Bb4 $16 Nd5 31. Ba5) 30... Ra1 {[%emt 0:00:00]} 31. a4 {[%emt 0:00:00]} a5 {[%emt 0:00:00]} (31... Ra2 $142 32. Rxa2 Nxa2) 32. Rd2 {[%emt 0:00:00] Threatens to win with Rd7+.} Rd1 {[%emt 0:00:00]} 33. Rxd1 {[%emt 0:00:00]} Nxd1 {[%emt 0:00:00][%mdl 4096] Endgame KBB-KBN} 34. b4 {[%emt 0:00:00]} (34. h5 $142) 34... Bc3 {[%emt 0:00:00]} 35. bxa5 {[%emt 0:00:00]} Bxa5 {[%emt 0:00:00]} 36. Kf3 {[%emt 0:00:00]} Nc3 {[%emt 0:00:00]} 37. Ke3 {[%emt 0:00:00]} e5 {[%emt 0:00:00]} (37... Nd5+ $16 38. Kd3 Nb6) 38. Kd3 $18 {[%emt 0:00:00]} Ke6 {[%emt 0:00:00]} 39. Kc4 {[%emt 0:00:00]} g6 {[%emt 0:00:00]} 40. g4 {[%emt 0:00:00]} h5 $2 {[%emt 0:00:00]} (40... Ne2 41. Bd5+ Kd7) 41. f3 {[%emt 0:00:00]} Nxa4 {[%emt 0:03:56]} 42. Bxa4 {[%emt 0:00:00]} Be1 {[%emt 0:00:04]} 43. Be8 {[%emt 0:00:00][%csl LRg6,LRh5]} hxg4 {[%emt 0:01:07]} (43... e4 $18 44. Bxg6 hxg4 45. fxg4 Bxh4) 44. fxg4 {[%emt 0:00:00] White mates.} Bxh4 {[%emt 0:00:24]} 45. Bxg6 {[%emt 0:00:00]} Kf6 {[%emt 0:02:10]} 46. Bf5 {[%emt 0:00:00]} Bg3 {[%emt 0:03:03]} 47. Kd5 {[%emt 0:00:00]} Be1 {[%emt 0:03:10]} 48. Ke4 {[%emt 0:00:00]} Bg3 {[%emt 0:02:57]} 49. Be3 {[%emt 0:00:00]} Bh4 {[%emt 0:00:29]} 50. Bd2 {[%emt 0:00:00]} c6 {[%emt 0:00:40]} 51. Ba5 {[%emt 0:00:00]} Bg3 {[%emt 0:00:32]} 52. Bd8+ {[%emt 0:00:00]} Kg7 {[%emt 0:00:03]} 53. g5 {[%emt 0:00:00]} Bf4 {[%emt 0:01:14]} 54. Kf3 {[%emt 0:00:00]} c5 {[%emt 0:00:15]} 55. Bd3 {[%emt 0:00:00]} Kf7 {[%emt 0:01:14]} 56. Kg4 {[%emt 0:00:00]} Ke6 {[%emt 0:00:36]} 57. Bc4+ {[%emt 0:00:00]} Kd6 {[%emt 0:01:31]} 58. Bf6 {[%emt 0:00:00]} Bd2 {[%emt 0:00:46]} 59. g6 {[%emt 0:00:00][%cal Bg5g6,Bg6g7][%mdl 32]} Bh6 {[%emt 0:00:07]} 60. g7 {[%emt 0:00:00] Weighted Error Value: White=0.11 (very precise) /Black=0.38} 1-0